bitfinex-derivatives/quotes_BNBF0:USTF0_20250807
["timestamp","ask_amount","ask_price","bid_price","bid_amount"]
[1754590786404,0.875,775.4,774.87,0.86487659]
[1754590787204,0.875,775.4,774.72,1.1457652]
[1754590787205,0.875,775.4,774.86,0.86487659]
[1754590791205,0.875,775.4,774.85,0.86487659]
[1754590791404,0.875,775.4,774.86,0.86487659]
[1754590792208,0.875,775.4,774.85,0.86487659]
[1754590794207,0.875,775.4,774.87,0.86487659]
[1754590796906,0.875,775.4,774.84,0.86487659]
[1754590797612,0.875,775.4,774.82,0.86487659]
[1754590799312,0.875,775.4,774.83,0.86487659]
[1754590799512,0.875,775.4,774.82,0.86487659]
[1754590800708,0.875,775.4,774.83,0.86487659]
[1754590801006,0.875,775.4,774.85,0.86487659]
[1754590802216,0.875,775.4,774.88,0.86487659]
[1754590802414,0.875,775.4,774.91,0.86487659]
[1754590802610,0.875,775.4,774.89,0.86487659]
[1754590802909,0.875,775.4,774.98,0.86487659]
[1754590803110,0.875,775.4,775.01,0.86487659]
[1754590806212,0.875,775.4,775.02,0.86487659]
[1754590806412,0.875,775.4,775.01,0.86487659]
[1754590807212,0.875,775.4,774.82,1.1457652]
[1754590807213,0.875,775.4,775.02,0.86487659]
[1754590807417,0.875,775.4,775.01,0.86487659]
[1754590809314,0.918,775.39,775.02,0.86487659]
[1754590810219,0.918,775.39,775.03,0.86487659]
[1754590810417,0.918,775.39,775.04,0.86487659]
[1754590810622,0.918,775.39,775.07,0.86487659]
[1754590811417,0.918,775.39,775.08,0.86487659]
[1754590812320,0.918,775.39,775.09,0.86487659]
[1754590812619,0.918,775.39,775.08,0.86487659]
[1754590813017,0.884,775.38,775.08,0.86487659]
[1754590813222,0.884,775.38,775.09,0.86487659]
[1754590815123,0.884,775.38,775.07,0.86487659]
[1754590817024,0.884,775.38,775.08,0.86487659]
[1754590817623,0.884,775.38,775.07,0.86487659]
[1754590818224,0.884,775.38,775.08,0.86487659]
[1754590818425,0.884,775.38,775.07,0.86487659]
[1754590819224,0.884,775.38,774.92,1.1457652]
[1754590819225,0.884,775.38,775.08,0.86487659]
[1754590822125,0.884,775.38,775.09,0.86487659]
[1754590822621,1.02,775.37,775.09,0.86487659]
[1754590824727,1.02,775.37,775.12,0.86487659]
[1754590825127,1.02,775.37,775.13,0.86487659]
[1754590826526,1.02,775.37,775.1,0.86487659]
[1754590827027,1.02,775.37,775.11,0.86487659]
[1754590828224,1.02,775.37,775.1,0.86487659]
[1754590828428,1.02,775.37,775.11,0.86487659]
[1754590828629,1.02,775.37,775.1,0.86487659]
[1754590831125,1.02,775.37,775.09,0.86487659]
[1754590832731,1.02,775.37,775.06,0.86487659]
[1754590833332,1.02,775.37,775.07,0.86487659]
[1754590834233,1.02,775.37,775.06,0.86487659]
[1754590835835,1.02,775.37,775.05,0.86487659]
[1754590836432,1.02,775.37,775.07,0.86487659]
[1754590839634,1.02,775.37,775.08,0.86487659]
[1754590840031,1.022,775.36,775.08,0.86487659]
[1754590840834,1.022,775.36,775.09,0.86487659]
[1754590841238,1.022,775.36,775.1,0.86487659]
[1754590841737,1.022,775.36,775.11,0.86487659]
[1754590842537,1.022,775.36,775.12,0.86487659]
[1754590843439,0.828,775.35,775.13,0.86487659]
[1754590844136,0.828,775.35,775.14,0.86487659]
[1754590845136,0.828,775.35,775.15,0.86487659]
[1754590848240,0.828,775.35,775.16,0.86487659]
[1754590851243,0.828,775.35,775.17,0.86487659]
[1754590851946,0.828,775.35,775.16,0.86487659]
[1754590852246,0.828,775.35,775.17,0.86487659]
[1754590852946,0.828,775.35,775.04,1.1457652]
[1754590853144,0.828,775.35,775.17,0.86380556]
[1754590854154,0.828,775.35,775.18,0.86380556]
[1754590854350,0.828,775.35,775.17,0.86380556]
[1754590855851,0.828,775.35,775.16,0.86380556]
[1754590856255,0.828,775.35,775.17,0.86380556]
[1754590857252,0.828,775.35,775.18,0.86380556]
[1754590858156,0.828,775.35,775.19,0.86380556]
[1754590859357,0.828,775.35,775.21,0.86380556]
[1754590860560,0.828,775.35,775.2,0.86380556]
[1754590860758,0.828,775.35,775.19,0.86380556]
[1754590861054,0.828,775.35,774.89,1.7186479]
[1754590861055,0.828,775.35,775.18,0.86380556]
[1754590861660,0.828,775.35,774.57,0.22442202]
[1754590861661,0.828,775.35,775.2,0.86380556]
[1754590862266,0.828,775.35,775.06,1.1457652]
[1754590862565,0.828,775.35,774.91,1.7186479]
[1754590862961,0.828,775.35,774.99,1.1546057]
[1754590863461,0.828,775.35,774.81,1.7186479]
[1754590863766,0.828,775.35,774.57,0.22442202]
[1754590864760,0.828,775.35,775.16,0.86588252]
[1754590865361,0.828,775.35,775.05,0.86588252]
[1754590866561,0.828,775.35,774.61,1.731765]
[1754590866562,0.828,775.35,775.04,0.86588252]
[1754590867268,0.828,775.35,775.03,0.86588252]
[1754590867673,0.828,775.35,775.04,0.86588252]
[1754590867863,0.828,775.35,775.01,0.86588252]
[1754590868267,0.828,775.35,775.0,0.86588252]
[1754590868965,0.828,775.35,775.06,0.86588252]
[1754590869365,0.828,775.35,775.05,0.86588252]
[1754590870668,0.828,775.35,775.04,0.86588252]
[1754590872271,0.828,775.35,775.03,0.86588252]
[1754590872468,0.828,775.35,775.04,0.86588252]
[1754590873373,0.828,775.35,775.03,0.86588252]
[1754590874374,0.828,775.35,775.02,0.86588252]
[1754590874772,0.828,775.35,774.97,0.86588252]
[1754590876572,0.828,775.35,774.95,0.86588252]
[1754590877979,0.828,775.35,774.94,0.86588252]
[1754590879974,0.828,775.35,774.98,0.86588252]
[1754590880881,0.828,775.35,774.99,0.86588252]
[1754590881778,0.828,775.35,774.98,0.86588252]
[1754590883475,0.828,775.35,774.99,0.86588252]
[1754590884379,0.828,775.35,774.57,0.22442202]
[1754590884380,0.828,775.35,774.98,0.86588252]
[1754590884880,0.762,775.34,774.97,0.86588252]
[1754590888377,0.762,775.34,774.96,0.86588252]
[1754590889377,0.762,775.34,774.98,0.86588252]
[1754590890276,0.762,775.34,774.97,0.86588252]
[1754590893085,0.762,775.34,774.94,0.86588252]
[1754590893284,0.762,775.34,774.74,1.15451]
[1754590893285,0.762,775.34,774.9,0.86588252]
[1754590895183,0.762,775.34,774.89,0.86588252]
[1754590895484,0.762,775.34,774.9,0.86588252]
[1754590896384,0.762,775.34,774.89,0.86588252]
[1754590896884,0.762,775.34,774.9,0.86588252]
[1754590897288,0.762,775.34,774.89,0.86588252]
[1754590897685,0.762,775.34,774.92,0.86588252]
[1754590898690,0.762,775.34,774.93,0.86588252]
[1754590900991,1.042,775.33,774.93,0.86588252]
[1754590901689,1.042,775.33,774.92,0.86588252]
[1754590901990,1.042,775.33,774.94,0.86588252]
[1754590902992,1.042,775.33,774.93,0.86588252]
[1754590904192,1.042,775.33,774.6,1.731765]
[1754590904193,1.042,775.33,774.94,0.86588252]
[1754590904789,1.042,775.33,774.95,0.86588252]
[1754590905590,1.042,775.33,774.94,0.86588252]
[1754590906389,1.042,775.33,774.95,0.86588252]
[1754590907290,1.042,775.33,774.78,1.15451]
[1754590907291,1.042,775.33,774.96,0.86588252]
[1754590907594,1.042,775.33,774.95,0.86588252]
[1754590908599,1.042,775.33,774.92,0.86588252]
[1754590908795,1.042,775.33,774.96,0.86588252]
[1754590908992,1.042,775.33,775.0,0.86588252]
[1754590909492,1.042,775.33,775.01,0.86588252]
[1754590911598,1.046,775.32,775.01,0.86588252]
[1754590912297,1.046,775.32,775.02,0.86588252]
[1754590914400,1.046,775.32,775.03,0.86588252]
[1754590915300,1.046,775.32,775.05,0.86588252]
[1754590915598,1.046,775.32,775.06,0.86588252]
[1754590916397,1.046,775.32,775.12,0.86588252]
[1754590916696,1.046,775.32,775.1,0.86588252]
[1754590917200,1.046,775.32,775.09,0.86588252]
[1754590917598,1.046,775.32,775.14,0.86588252]
[1754590918303,1.046,775.32,775.13,0.86588252]
[1754590921502,1.046,775.32,775.12,0.86588252]
[1754590923705,1.046,775.32,775.11,0.86588252]
[1754590923905,1.046,775.32,774.91,1.15451]
[1754590923906,1.046,775.32,775.12,0.86588252]
[1754590924303,1.046,775.32,775.11,0.86588252]
[1754590924906,1.046,775.32,775.12,0.86588252]
[1754590925802,1.046,775.32,775.16,0.86588252]
[1754590926202,1.046,775.32,775.15,0.86588252]
[1754590926606,1.046,775.32,775.16,0.86588252]
[1754590928308,1.046,775.32,775.15,0.86588252]
[1754590928505,1.046,775.32,775.11,0.86588252]
[1754590929310,1.046,775.32,775.12,0.86588252]
[1754590930106,1.046,775.32,775.11,0.86588252]
[1754590930510,1.046,775.32,775.12,0.86588252]
[1754590931410,1.046,775.32,775.11,0.86588252]
[1754590931906,1.046,775.32,775.12,0.86588252]
[1754590932508,1.046,775.32,775.06,0.86588252]
[1754590935609,1.046,775.32,774.93,1.15451]
[1754590935610,1.046,775.32,775.07,0.86588252]
[1754590936616,1.046,775.32,775.06,0.86588252]
[1754590938813,1.046,775.32,775.05,0.86588252]
[1754590939217,1.046,775.32,774.91,1.15451]
[1754590939416,1.046,775.32,775.05,0.86225209]
[1754590940214,1.046,775.32,774.57,0.22442202]
[1754590940215,1.046,775.32,775.07,0.86225209]
[1754590940629,1.042,775.33,775.07,0.86225209]
[1754590941924,1.042,775.33,775.08,0.86225209]
[1754590943127,0.915,775.32,775.09,0.86225209]
[1754590943324,0.915,775.32,775.1,0.86225209]
[1754590947329,0.915,775.32,775.11,0.86225209]
[1754590948525,0.915,775.32,775.12,0.86225209]
[1754590950327,1.174,775.31,775.12,0.86225209]
[1754590950731,1.174,775.31,775.0,1.15451]
[1754590950928,1.174,775.31,774.57,0.22442202]
[1754590951127,1.174,775.31,775.12,0.86283705]
[1754590952630,1.174,775.31,774.98,0.86283705]
[1754590953635,1.174,775.31,775.04,0.86283705]
[1754590953829,1.174,775.31,774.73,1.1504494]
[1754590953830,1.174,775.31,775.03,0.86283705]
[1754590954534,1.174,775.31,775.02,0.86283705]
[1754590954834,1.174,775.31,775.03,0.86283705]
[1754590957134,1.174,775.31,775.02,0.86283705]
[1754590959237,1.174,775.31,775.03,0.86283705]
[1754590960438,1.174,775.31,775.04,0.86283705]
[1754590961740,1.174,775.31,775.03,0.86283705]
[1754590962341,1.174,775.31,775.04,0.86283705]
[1754590962541,1.174,775.31,775.05,0.86283705]
[1754590962839,1.174,775.31,774.81,1.1504494]
[1754590962840,1.174,775.31,775.11,0.86283705]
[1754590963841,1.174,775.31,775.1,0.86283705]
[1754590964942,1.174,775.31,774.9,1.1504494]
[1754590964943,1.174,775.31,775.11,0.86283705]
[1754590965338,1.174,775.31,775.12,0.86283705]
[1754590966940,1.174,775.31,775.19,0.86283705]
[1754590967341,1.174,775.31,775.18,0.86283705]
[1754590968144,1.174,775.31,775.21,0.86283705]
[1754590968341,1.174,775.31,775.19,0.86283705]
[1754590970344,1.174,775.31,774.94,1.1504494]
[1754590970345,1.174,775.31,775.18,0.86283705]
[1754590971840,1.174,775.31,775.19,0.86283705]
[1754590972545,1.174,775.31,775.18,0.86283705]
[1754590973446,1.174,775.31,775.17,0.86283705]
[1754590976347,1.174,775.31,775.16,0.86283705]
[1754590976645,1.174,775.31,775.2,0.86283705]
[1754590977347,1.174,775.31,775.19,0.86283705]
[1754590977645,1.174,775.31,775.2,0.86283705]
[1754590978045,1.174,775.31,775.19,0.86283705]
[1754590978244,1.174,775.31,775.18,0.86283705]
[1754590978445,1.174,775.31,775.17,0.86283705]
[1754590979245,1.174,775.31,775.06,0.86283705]
[1754590979449,1.174,775.31,775.21,0.86283705]
[1754590979746,1.174,775.31,775.2,0.86283705]
[1754590980548,1.174,775.31,775.21,0.86283705]
[1754590980756,1.174,775.31,775.19,0.86283705]
[1754590980947,1.174,775.31,775.2,0.86283705]
[1754590981949,1.174,775.31,775.19,0.86283705]
[1754590982352,1.174,775.31,775.18,0.86283705]
[1754590982753,1.174,775.31,775.19,0.86283705]
[1754590983550,1.174,775.31,775.18,0.86283705]
[1754590985350,1.174,775.31,775.17,0.86283705]
[1754590985549,0.833,775.38,775.17,0.86283705]
[1754590985850,0.833,775.38,775.18,0.86283705]
[1754590986353,0.833,775.38,775.17,0.86283705]
[1754590986550,0.833,775.38,775.18,0.86283705]
[1754590987456,0.833,775.38,775.17,0.86283705]
[1754590987753,0.833,775.38,774.82,0.22435474]
[1754590987754,0.833,775.38,775.16,0.86283705]
[1754590988251,0.833,775.38,775.15,0.86283705]
[1754590989054,0.749,775.37,775.15,0.86283705]
[1754590989252,0.749,775.37,775.18,0.86283705]
[1754590989455,0.749,775.37,775.21,0.86283705]
[1754590989954,0.749,775.37,775.18,0.86283705]
[1754590990256,0.749,775.37,775.19,0.86283705]
[1754590990453,0.749,775.37,775.18,0.86283705]
[1754590990654,0.749,775.37,775.2,0.86283705]
[1754590992757,0.749,775.37,775.21,0.86283705]
[1754590992960,0.749,775.37,775.2,0.86283705]
[1754590993257,0.749,775.37,775.18,0.86283705]
[1754590997159,0.749,775.37,775.2,0.86283705]
[1754590998162,0.749,775.37,775.21,0.86283705]
[1754590999762,0.749,775.37,775.22,0.86283705]
[1754591001757,0.749,775.37,775.21,0.86283705]
[1754591001962,0.749,775.37,775.2,0.86283705]
[1754591002557,0.749,775.37,775.19,0.86283705]
[1754591003062,0.749,775.37,775.2,0.86283705]
[1754591004666,0.749,775.37,775.21,0.86283705]
[1754591005161,0.749,775.37,775.2,0.86283705]
[1754591009471,0.749,775.37,775.21,0.86283705]
[1754591011677,0.749,775.37,775.25,0.86283705]
[1754591011875,0.749,775.37,775.27,0.86283705]
[1754591012179,0.749,775.37,775.28,0.86283705]
[1754591012579,0.749,775.37,775.3,0.86283705]
[1754591013581,0.749,775.37,775.32,0.86283705]
[1754591015581,0.749,775.37,775.33,0.86283705]
[1754591016385,0.749,775.37,775.32,0.86283705]
[1754591018481,0.749,775.37,775.33,0.86283705]
[1754591019686,0.749,775.37,775.36,0.86283705]
[1754591021383,0.749,775.37,775.2,1.1504494]
[1754591021588,0.749,775.37,775.22,1.1504494]
[1754591021986,0.749,775.37,775.23,1.1504494]
[1754591022287,0.749,775.37,775.24,1.1504494]
[1754591022590,0.749,775.37,775.23,1.1504494]
[1754591023492,0.749,775.37,775.24,1.1504494]
[1754591024392,0.749,775.37,775.25,1.1504494]
[1754591025292,0.749,775.37,775.26,1.1504494]
[1754591026189,0.749,775.37,775.28,1.1504494]
[1754591026392,0.749,775.37,775.29,1.1504494]
[1754591026588,0.749,775.37,775.28,1.1504494]
[1754591027295,0.749,775.37,775.27,1.1504494]
[1754591027494,0.749,775.37,775.28,1.1504494]
[1754591029296,0.749,775.37,775.26,1.1504494]
[1754591029593,0.749,775.37,775.25,1.1504494]
[1754591029896,0.749,775.37,775.26,1.1504494]
[1754591030293,0.749,775.37,775.27,1.1504494]
[1754591030797,0.749,775.37,775.26,1.1504494]
[1754591031498,0.749,775.37,775.27,1.1504494]
[1754591032198,0.749,775.37,775.28,1.1504494]
[1754591034805,0.749,775.37,775.29,1.1504494]
[1754591035700,0.749,775.37,775.28,1.1504494]
[1754591036306,0.749,775.37,775.29,1.1504494]
[1754591038309,0.749,775.37,775.3,1.1504494]
[1754591039309,0.749,775.37,775.33,1.1504494]
[1754591039605,0.749,775.37,775.34,1.1504494]
[1754591041705,0.749,775.37,775.3,1.1504494]
[1754591041910,0.749,775.37,775.28,1.1504494]
[1754591043210,0.86785585,776.02,775.35,0.86416836]
[1754591043410,0.86785585,775.98,775.27,0.86416836]
[1754591043612,0.86180471,775.97,775.27,0.86416836]
[1754591043906,0.86180471,775.97,775.17,0.86416836]
[1754591044111,0.86180471,775.96,775.17,0.86416836]
[1754591044311,0.86180471,775.95,775.19,0.86416836]
[1754591044511,0.86194981,775.94,775.19,0.86416836]
[1754591044807,0.86194981,775.93,775.16,0.86416836]
[1754591045108,0.86194981,775.92,775.17,0.86416836]
[1754591045318,0.86218118,775.91,775.16,0.86416836]
[1754591045511,0.86218118,775.9,775.16,0.86416836]
[1754591045709,0.86218118,775.89,774.85,1.1504494]
[1754591045908,0.22435618,776.1,774.85,1.1504494]
[1754591046107,0.86212184,776.09,775.23,0.86409716]
[1754591046307,0.86941971,776.05,775.23,0.86409716]
[1754591046612,0.86212184,776.04,775.23,0.86409716]
[1754591046812,0.86212184,776.03,775.23,0.86409716]
[1754591047012,0.86212184,776.02,775.23,0.86409716]
[1754591047213,0.86212184,776.01,775.23,0.86409716]
[1754591047510,0.8620628,776.0,775.55,0.86409716]
[1754591047712,0.8620628,775.99,775.3,1.1504494]
[1754591047913,0.8620628,775.98,775.56,0.86300889]
[1754591048108,0.8620628,775.97,775.56,0.86300889]
[1754591048312,0.22428316,776.29,775.55,0.86300889]
[1754591048512,0.86171727,776.28,775.55,0.86300889]
[1754591048712,0.86171727,776.27,775.55,0.86300889]
[1754591048911,0.86171727,776.26,775.55,0.86300889]
[1754591049111,0.86171727,776.25,775.55,0.86300889]
[1754591049415,0.86171727,776.24,775.54,0.86300889]
[1754591049614,0.86171727,776.23,775.54,0.86300889]
[1754591049812,0.86171727,776.22,775.54,0.86300889]
[1754591050010,0.86171727,776.21,775.55,0.86300889]
[1754591050213,0.86171727,776.2,775.54,0.86300889]
[1754591050411,0.8609226,776.19,775.54,0.86300889]
[1754591050614,0.8609226,776.18,775.54,0.86300889]
[1754591050815,0.8609226,776.17,775.55,0.86300889]
[1754591051115,0.8609226,776.16,775.56,0.86300889]
[1754591051312,0.22428316,776.29,775.55,0.86300889]
[1754591051514,0.86065568,776.28,775.55,0.86300889]
[1754591051813,0.86065568,776.27,775.55,0.86300889]
[1754591052111,0.86065568,776.26,775.55,0.86300889]
[1754591052317,0.86065568,776.25,775.54,0.86300889]
[1754591052513,0.86065568,776.24,775.54,0.86300889]
[1754591052712,0.22428316,776.29,775.45,0.86300889]
[1754591052914,0.86040497,776.28,775.45,0.86300889]
[1754591053113,0.86040497,776.27,775.45,0.86300889]
[1754591053316,0.86040497,776.27,774.82,0.22435474]
[1754591053317,0.86039244,776.26,775.44,0.86300889]
[1754591053514,0.22428316,776.29,775.44,0.86300889]
[1754591053714,0.86016933,776.28,775.44,0.86300889]
[1754591053913,0.86016933,776.27,775.44,0.86300889]
[1754591054113,0.22428316,776.29,775.45,0.86300889]
[1754591054317,0.86016938,776.28,775.43,0.86300889]
[1754591054615,0.22428316,776.29,775.39,0.86300889]
[1754591054817,0.85997618,776.28,775.4,0.86300889]
[1754591055014,0.22428316,776.29,775.39,0.86300889]
[1754591055315,0.85997618,776.28,775.38,0.86300889]
[1754591055517,0.22428316,776.29,775.38,0.86300889]
[1754591055715,0.22428316,776.29,775.36,0.86300889]
[1754591056215,0.22428316,776.29,775.35,0.86300889]
[1754591056517,0.8598227,776.28,775.35,0.86300889]
[1754591056715,0.22428316,776.29,775.35,0.86300889]
[1754591056918,0.85975411,776.28,775.35,0.86300889]
[1754591057115,0.85975411,776.27,775.35,0.86300889]
[1754591057315,0.85975411,776.26,775.38,0.86300889]
[1754591057518,0.22428316,776.29,775.38,0.86300889]
[1754591057717,0.8596743,776.28,775.37,0.86300889]
[1754591057916,0.8596743,776.27,775.37,0.86300889]
[1754591058120,0.8596743,776.26,775.37,0.86300889]
[1754591058321,0.22428316,776.29,775.34,0.86300889]
[1754591058620,0.85951914,776.28,775.47,0.86300889]
[1754591058818,0.85951914,776.27,775.47,0.86300889]
[1754591059019,0.85951914,776.26,775.35,0.86300889]
[1754591059220,0.85951914,776.25,775.35,0.86300889]
[1754591059521,0.85951914,776.24,775.35,0.86300889]
[1754591059722,0.85951914,776.23,775.35,0.86300889]
[1754591059918,0.85951914,776.23,774.87,1.7256741]
[1754591059919,0.85951914,776.22,775.36,0.86300889]
[1754591060116,0.85951914,776.21,775.36,0.86300889]
[1754591060323,0.85951914,776.2,775.36,0.86300889]
[1754591060523,0.85951914,776.19,775.36,0.86300889]
[1754591060727,0.85951914,776.18,775.36,0.86300889]
[1754591060924,0.85951914,776.17,775.36,0.86300889]
[1754591061129,0.85951914,776.16,775.37,0.86300889]
[1754591061327,0.85951914,776.15,775.38,0.86300889]
[1754591061527,0.85951914,776.14,775.38,0.86300889]
[1754591061724,0.85951914,776.13,775.38,0.86300889]
[1754591062021,0.85951914,776.12,775.38,0.86300889]
[1754591062228,0.22428316,776.29,775.38,0.86300889]
[1754591062427,0.85958391,776.28,775.39,0.86300889]
[1754591062621,0.85958391,776.27,775.39,0.86300889]
[1754591062825,0.85958391,776.26,775.39,0.86300889]
[1754591063121,0.85958391,776.25,775.39,0.86300889]
[1754591063425,0.85958391,776.24,775.39,0.86300889]
[1754591063621,0.85958391,776.23,775.39,0.86300889]
[1754591063822,0.85958391,776.22,775.39,0.86300889]
[1754591064026,0.85958391,776.21,775.39,0.86300889]
[1754591064226,0.85958391,776.2,775.39,0.86300889]
[1754591064426,0.85958391,776.19,775.39,0.86300889]
[1754591064724,0.85958391,776.18,775.39,0.86300889]
[1754591065026,0.857,776.25,775.39,0.86300889]
[1754591065223,0.85957744,776.24,775.39,0.86300889]
[1754591065423,0.85957744,776.23,775.4,0.86300889]
[1754591065723,0.85957744,776.22,775.4,0.86300889]
[1754591065927,0.85957744,776.21,775.4,0.86300889]
[1754591066127,0.85957744,776.2,775.4,0.86300889]
[1754591066327,0.85957744,776.19,775.4,0.86300889]
[1754591066528,0.85957744,776.18,775.4,0.86300889]
[1754591066728,0.85957744,776.17,775.4,0.86300889]
[1754591066929,0.85957744,776.16,775.4,0.86300889]
[1754591067229,0.85957744,776.15,775.4,0.86300889]
[1754591067430,0.85957744,776.14,775.4,0.86300889]
[1754591067730,0.85957744,776.13,775.4,0.86300889]
[1754591067930,0.85957744,776.12,775.4,0.86300889]
[1754591068131,0.85957744,776.11,775.4,0.86300889]
[1754591068330,0.85957744,776.1,775.4,0.86300889]
[1754591068531,0.85957744,776.09,775.46,0.86300889]
[1754591068732,0.857,776.25,775.37,0.86300889]
[1754591069033,0.85953077,776.24,775.38,0.86300889]
[1754591069228,0.85953077,776.23,775.38,0.86300889]
[1754591069426,0.85953077,776.22,775.38,0.86300889]
[1754591069632,0.85953077,776.21,775.38,0.86300889]
[1754591069832,0.857,776.25,775.37,0.86300889]
[1754591069833,0.85953077,776.2,775.37,0.86300889]
[1754591070133,0.85953077,776.19,775.37,0.86300889]
[1754591070333,0.85953077,776.18,775.37,0.86300889]
[1754591070528,0.85953077,776.17,775.37,0.86300889]
[1754591070733,0.85953077,776.16,775.37,0.86300889]
[1754591070935,0.85953077,776.15,775.37,0.86300889]
[1754591071129,0.85953077,776.14,775.37,0.86300889]
[1754591071334,0.85953077,776.13,775.37,0.86300889]
[1754591071631,0.857,776.25,775.37,0.86300889]
[1754591071831,0.85945467,776.24,775.39,0.86300889]
[1754591072032,0.85945467,776.23,775.43,0.86300889]
[1754591072234,0.85945467,776.22,775.43,0.86300889]
[1754591072434,0.85945467,776.21,775.43,0.86300889]
[1754591072633,0.85945467,776.2,775.43,0.86300889]
[1754591072833,0.85945467,776.19,775.43,0.86300889]
[1754591073032,0.857,776.25,775.43,0.86300889]
[1754591073331,0.85941794,776.24,775.43,0.86300889]
[1754591073535,0.85941794,776.23,775.43,0.86300889]
[1754591073736,0.85941794,776.22,775.43,0.86300889]
[1754591073932,0.85938478,776.21,775.43,0.86300889]
[1754591074136,0.85938478,776.2,775.43,0.86300889]
[1754591074335,0.85936506,776.19,775.43,0.86300889]
[1754591074534,0.857,776.25,775.43,0.86300889]
[1754591074738,0.85935451,776.24,775.43,0.86300889]
[1754591074940,0.85935451,776.23,775.43,0.86300889]
[1754591075134,0.85935451,776.22,775.43,0.86300889]
[1754591075335,0.85935451,776.21,775.43,0.86300889]
[1754591075539,0.85935451,776.2,775.43,0.86300889]
[1754591075839,0.85935451,776.19,775.43,0.86300889]
[1754591076138,0.857,776.25,775.43,0.86300889]
[1754591076338,0.85930677,776.24,775.42,0.86300889]
[1754591076538,0.85930677,776.23,775.42,0.86300889]
[1754591076735,0.85930677,776.22,775.42,0.86300889]
[1754591076934,0.85930677,776.21,775.42,0.86300889]
[1754591077135,0.85930677,776.2,775.42,0.86300889]
[1754591077333,0.85927745,776.19,775.42,0.86300889]
[1754591077540,0.85927745,776.18,775.45,0.86300889]
[1754591077840,0.857,776.25,775.45,0.86300889]
[1754591078040,0.85927745,776.24,775.45,0.86300889]
[1754591078240,0.85927745,776.23,775.45,0.86300889]
[1754591078440,0.85927745,776.22,775.45,0.86300889]
[1754591078640,0.85927745,776.21,775.5,0.86300889]
[1754591078841,0.85927745,776.2,775.51,0.86300889]
[1754591079041,0.85927745,776.19,775.52,0.86300889]
[1754591079242,0.85927745,776.18,775.51,0.86300889]
[1754591079539,0.85927745,776.17,775.51,0.86300889]
[1754591079837,0.85927745,776.16,775.51,0.86300889]
[1754591080037,0.85927745,776.15,775.52,0.86300889]
[1754591080241,0.85927745,776.14,775.52,0.86300889]
[1754591080541,0.85927745,776.13,775.52,0.86300889]
[1754591080741,0.857,776.25,775.52,0.86300889]
[1754591080940,0.85922373,776.24,775.52,0.86300889]
[1754591081137,0.85922373,776.23,775.52,0.86300889]
[1754591081341,0.85922373,776.22,775.52,0.86300889]
[1754591081537,0.85922373,776.21,775.52,0.86300889]
[1754591081737,0.85922373,776.2,775.52,0.86300889]
[1754591081938,0.85922373,776.19,775.52,0.86300889]
[1754591082140,0.85922373,776.18,775.52,0.86300889]
[1754591082340,0.85922373,776.17,775.52,0.86300889]
[1754591082540,0.85922373,776.16,775.52,0.86300889]
[1754591082744,0.85920085,776.15,775.52,0.86300889]
[1754591083043,0.857,776.25,775.52,0.86300889]
[1754591083244,0.85920061,776.24,775.52,0.86300889]
[1754591088650,0.85920061,776.24,775.38,1.1504494]
[1754591088651,0.85920061,776.24,775.53,0.86300889]
[1754591089954,1.72824992,776.24,775.54,0.86300889]
[1754591090150,0.85920061,776.23,775.54,0.86300889]
[1754591090351,1.72824992,776.23,775.54,0.86300889]
[1754591090550,0.85920061,776.22,775.54,0.86300889]
[1754591091555,0.85925862,776.21,775.54,0.86300889]
[1754591091749,0.86904931,776.23,775.54,0.86300889]
[1754591091750,0.85925862,776.2,775.54,0.86300889]
[1754591091952,0.85927455,776.19,775.54,0.86300889]
[1754591092152,0.85927455,776.18,775.54,0.86300889]
[1754591092354,0.85927455,776.17,775.55,0.86300889]
[1754591092656,0.85927455,776.16,775.55,0.86300889]
[1754591092953,0.85927455,776.15,775.55,0.86300889]
[1754591093155,0.85927455,776.14,775.55,0.86300889]
[1754591093354,0.85927455,776.13,775.55,0.86300889]
[1754591093555,0.85927455,776.12,775.55,0.86300889]
[1754591093759,0.85927455,776.11,775.55,0.86300889]